{"text_format":"1","workbook":"xlsx","n_sheets":1,"sheets":["Sheet1"],"not_rendered":{"charts":0,"images":0,"macros":1,"external_links":0,"defined_names":144,"comments":1,"pivot_tables":0},"unopened":[],"bounds":{"document_bytes":16777216,"sheet_cells":100000,"rows_first":2000,"rows_last":500,"rows_between":2000,"halvings":0,"cell_chars":16384,"cell_head_chars":4096},"cells_cut":0,"cells_raw":0,"read":"whole","date_system":"1900"}

{"sheet":"Sheet1","index":0,"n_rows":600,"n_cols":38,"rows_kept":600,"cut":false,"hidden":false,"merged":[[364,3,364,13],[364,14,364,16],[365,3,365,13],[365,14,365,16],[571,3,577,28],[515,15,515,16],[514,3,514,6],[514,7,514,8],[514,9,514,11],[514,12,514,14],[514,15,514,16],[515,3,515,6],[515,7,515,8],[515,9,515,11],[515,12,515,14],[521,13,521,14],[513,3,513,6],[513,7,513,8],[511,3,512,6],[511,7,512,8],[302,16,302,17],[302,18,302,19],[303,3,303,13],[303,14,303,15],[303,16,303,17],[303,18,303,19],[304,3,304,13],[304,14,304,15],[304,16,304,17],[304,18,304,19],[10,3,10,14],[417,17,422,18],[416,17,416,18],[398,17,402,18],[397,17,397,18],[595,3,595,14],[596,3,596,14],[597,3,597,14],[586,3,586,14],[587,3,587,14],[588,3,588,14],[589,3,589,14],[590,3,590,14],[591,3,591,14],[592,3,592,14],[593,3,593,14],[594,3,594,14],[533,10,533,12],[516,3,516,6],[516,7,516,8],[516,9,516,11],[516,12,516,14],[516,15,516,16],[518,15,518,16],[534,10,534,12],[535,10,535,12],[536,10,536,12],[528,5,528,10],[528,15,528,20],[528,25,528,27],[531,3,531,9],[532,3,532,9],[533,3,533,9],[534,3,534,9],[535,3,535,9],[536,3,536,9],[531,10,531,12],[532,10,532,12],[599,3,599,28],[564,3,564,28],[542,3,542,28],[556,13,556,15],[555,13,555,15],[556,16,556,18],[555,16,555,18],[555,3,555,12],[556,3,556,12],[36,3,36,28],[491,17,491,19],[492,17,492,19],[494,17,494,19],[491,3,491,16],[492,3,492,16],[494,3,494,16],[470,3,470,13],[470,14,470,16],[481,3,481,10],[481,11,481,13],[483,3,483,10],[483,11,483,13],[481,14,481,18],[483,14,483,18],[481,19,481,21],[483,19,483,21],[63,9,63,21],[301,3,301,13],[301,14,301,15],[301,16,301,17],[301,18,301,19],[302,3,302,13],[302,14,302,15],[453,14,453,16],[454,3,454,13],[454,14,454,16],[457,3,457,13],[457,14,457,16],[511,9,512,11],[511,12,512,14],[513,9,513,11],[513,12,513,14],[511,15,512,16],[513,15,513,16],[501,3,501,28],[276,3,276,28],[267,3,267,13],[267,14,267,16],[267,17,267,19],[268,3,268,13],[268,14,268,16],[268,17,268,19],[270,3,270,13],[270,14,270,16],[270,17,270,19],[259,3,259,10],[259,11,259,15],[260,3,260,10],[260,11,260,15],[256,16,256,20],[256,21,256,25],[257,16,257,20],[258,16,258,20],[259,16,259,20],[260,16,260,20],[257,21,257,25],[258,21,258,25],[259,21,259,25],[260,21,260,25],[255,11,255,15],[255,16,255,20],[255,21,255,25],[256,3,256,10],[256,11,256,15],[257,3,257,10],[258,3,258,10],[258,11,258,15],[257,11,257,15],[245,23,245,25],[246,23,246,25],[237,3,237,10],[238,3,238,10],[239,3,239,10],[240,3,240,10],[241,3,241,10],[242,3,242,10],[243,3,243,10],[244,3,244,10],[245,3,245,10],[240,23,240,25],[241,23,241,25],[242,23,242,25],[243,23,243,25],[240,18,240,20],[241,18,241,20],[242,18,242,20],[243,18,243,20],[244,18,244,20],[245,18,245,20],[246,18,246,20],[240,21,240,22],[241,21,241,22],[244,23,244,25],[232,23,232,25],[233,23,233,25],[234,23,234,25],[235,23,235,25],[236,23,236,25],[237,23,237,25],[238,23,238,25],[239,23,239,25],[221,21,221,22],[222,21,222,22],[223,21,223,22],[224,21,224,22],[227,23,227,25],[228,23,228,25],[229,23,229,25],[230,23,230,25],[231,23,231,25],[226,23,226,25],[206,23,206,25],[207,23,207,25],[208,23,208,25],[209,23,209,25],[210,23,210,25],[211,23,211,25],[219,23,219,25],[220,23,220,25],[215,23,215,25],[216,23,216,25],[217,23,217,25],[218,23,218,25],[221,23,221,25],[222,23,222,25],[223,23,223,25],[224,23,224,25],[225,23,225,25],[207,18,207,20],[208,18,208,20],[209,18,209,20],[210,18,210,20],[211,18,211,20],[212,18,212,20],[212,23,212,25],[213,23,213,25],[214,23,214,25],[213,18,213,20],[214,18,214,20],[225,21,225,22],[222,18,222,20],[223,18,223,20],[224,18,224,20],[225,18,225,20],[215,18,215,20],[216,18,216,20],[217,18,217,20],[246,21,246,22],[229,21,229,22],[230,21,230,22],[231,21,231,22],[232,21,232,22],[233,21,233,22],[234,21,234,22],[235,21,235,22],[236,21,236,22],[237,21,237,22],[238,21,238,22],[239,21,239,22],[244,16,244,17],[245,16,245,17],[237,16,237,17],[238,16,238,17],[239,16,239,17],[240,16,240,17],[242,21,242,22],[243,21,243,22],[244,21,244,22],[245,21,245,22],[237,18,237,20],[238,18,238,20],[239,18,239,20],[226,21,226,22],[227,21,227,22],[228,21,228,22],[241,16,241,17],[242,16,242,17],[243,16,243,17],[226,18,226,20],[227,18,227,20],[228,18,228,20],[229,18,229,20],[236,18,236,20],[230,18,230,20],[231,18,231,20],[232,18,232,20],[233,18,233,20],[234,18,234,20],[235,18,235,20],[246,16,246,17],[203,21,203,22],[204,21,204,22],[205,21,205,22],[206,21,206,22],[207,21,207,22],[208,21,208,22],[209,21,209,22],[210,21,210,22],[211,21,211,22],[212,21,212,22],[213,21,213,22],[214,21,214,22],[215,21,215,22],[216,21,216,22],[217,21,217,22],[218,21,218,22],[219,21,219,22],[220,21,220,22],[232,16,232,17],[233,16,233,17],[234,16,234,17],[235,16,235,17],[236,16,236,17],[225,16,225,17],[226,16,226,17],[227,16,227,17],[228,16,228,17],[229,16,229,17],[230,16,230,17],[231,16,231,17],[215,16,215,17],[216,16,216,17],[217,16,217,17],[218,16,218,17],[219,16,219,17],[220,16,220,17],[221,16,221,17],[222,16,222,17],[223,16,223,17],[236,11,236,12],[236,13,236,15],[246,13,246,15],[237,13,237,15],[238,13,238,15],[239,13,239,15],[240,13,240,15],[241,13,241,15],[242,13,242,15],[243,13,243,15],[244,13,244,15],[245,13,245,15],[237,11,237,12],[238,11,238,12],[239,11,239,12],[240,11,240,12],[241,11,241,12],[242,11,242,12],[243,11,243,12],[244,11,244,12],[245,11,245,12],[246,11,246,12],[231,11,231,12],[231,13,231,15],[232,11,232,12],[232,13,232,15],[233,11,233,12],[233,13,233,15],[234,11,234,12],[234,13,234,15],[235,13,235,15],[235,11,235,12],[226,13,226,15],[227,11,227,12],[227,13,227,15],[228,11,228,12],[228,13,228,15],[229,11,229,12],[229,13,229,15],[230,11,230,12],[230,13,230,15],[226,11,226,12],[236,3,236,10],[202,13,202,15],[202,11,202,12],[202,16,202,17],[202,18,202,20],[203,11,203,12],[203,13,203,15],[204,11,204,12],[204,13,204,15],[205,11,205,12],[205,13,205,15],[206,11,206,12],[206,13,206,15],[207,11,207,12],[207,13,207,15],[208,11,208,12],[208,13,208,15],[209,11,209,12],[209,13,209,15],[210,11,210,12],[222,11,222,12],[222,13,222,15],[220,11,220,12],[225,11,225,12],[225,13,225,15],[210,13,210,15],[218,11,218,12],[218,13,218,15],[219,11,219,12],[219,13,219,15],[200,11,200,15],[196,3,196,10],[221,11,221,12],[221,13,221,15],[220,13,220,15],[206,3,206,10],[196,16,196,20],[206,16,206,17],[204,18,204,20],[205,18,205,20],[206,18,206,20],[223,11,223,12],[223,13,223,15],[224,11,224,12],[224,13,224,15],[207,16,207,17],[208,16,208,17],[209,16,209,17],[210,16,210,17],[211,16,211,17],[212,16,212,17],[213,16,213,17],[214,16,214,17],[224,16,224,17],[218,18,218,20],[219,18,219,20],[220,18,220,20],[221,18,221,20],[246,3,246,10],[211,11,211,12],[211,13,211,15],[212,11,212,12],[212,13,212,15],[213,11,213,12],[213,13,213,15],[214,11,214,12],[214,13,214,15],[215,11,215,12],[215,13,215,15],[216,11,216,12],[216,13,216,15],[217,11,217,12],[217,13,217,15],[226,3,226,10],[227,3,227,10],[228,3,228,10],[229,3,229,10],[230,3,230,10],[231,3,231,10],[232,3,232,10],[225,3,225,10],[233,3,234,10],[164,14,164,16],[192,11,192,15],[193,11,195,15],[193,3,195,10],[163,17,163,19],[202,21,202,22],[202,23,202,25],[203,16,203,17],[204,16,204,17],[200,21,200,25],[203,23,203,25],[204,23,204,25],[201,11,201,15],[196,11,196,15],[203,3,203,10],[204,3,204,10],[164,17,164,19],[203,18,203,20],[160,3,161,10],[162,3,162,10],[192,21,192,25],[193,21,195,25],[192,16,192,20],[193,16,195,20],[176,19,176,21],[177,19,177,21],[166,3,166,10],[166,11,166,13],[166,14,166,16],[166,17,166,19],[166,20,166,22],[177,22,177,25],[179,3,179,10],[179,11,179,15],[179,16,179,18],[179,19,179,21],[179,22,179,25],[163,3,163,10],[164,3,164,10],[163,11,163,13],[164,11,164,13],[163,14,163,16],[160,20,161,22],[162,20,162,22],[160,23,161,24],[162,23,162,24],[162,11,162,13],[160,11,161,13],[160,14,161,16],[162,14,162,16],[160,17,161,19],[162,17,162,19],[135,16,135,18],[135,19,135,21],[135,22,135,23],[137,24,137,25],[137,3,137,10],[137,11,137,12],[137,13,137,15],[137,16,137,18],[137,19,137,21],[137,22,137,23],[118,17,118,19],[119,3,119,13],[119,14,119,16],[119,17,119,19],[130,16,130,21],[130,22,130,23],[131,22,131,23],[132,22,132,23],[130,24,130,25],[131,24,131,25],[132,24,132,25],[131,16,131,18],[132,16,132,18],[131,19,131,21],[132,19,132,21],[114,3,114,13],[114,14,114,16],[114,17,114,19],[115,3,115,13],[115,14,115,16],[115,17,115,19],[99,3,99,13],[99,14,99,16],[99,17,99,19],[113,3,113,13],[113,14,113,16],[113,17,113,19],[97,14,97,16],[97,17,97,19],[98,14,98,16],[98,17,98,19],[97,3,97,13],[98,3,98,13],[84,21,84,23],[85,21,85,23],[84,17,84,20],[85,17,85,20],[86,3,86,10],[86,11,86,13],[86,14,86,16],[86,17,86,20],[86,21,86,23],[84,3,84,10],[84,11,84,13],[85,3,85,10],[85,11,85,13],[85,14,85,16],[84,14,84,16],[73,24,73,25],[73,26,73,27],[74,3,74,10],[74,11,74,13],[74,14,74,16],[74,17,74,19],[74,20,74,21],[74,22,74,23],[74,24,74,25],[74,26,74,27],[73,3,73,10],[73,11,73,13],[73,14,73,16],[73,17,73,19],[73,20,73,21],[73,22,73,23],[71,24,71,25],[71,26,71,27],[72,3,72,10],[72,11,72,13],[72,14,72,16],[72,17,72,19],[72,20,72,21],[72,22,72,23],[72,24,72,25],[72,26,72,27],[71,3,71,10],[71,11,71,13],[71,14,71,16],[71,17,71,19],[71,20,71,21],[71,22,71,23],[69,26,69,27],[70,26,70,27],[70,11,70,13],[69,3,69,10],[69,11,69,13],[70,3,70,10],[69,14,69,16],[69,17,69,19],[69,20,69,21],[69,22,69,23],[69,24,69,25],[70,24,70,25],[70,14,70,16],[70,17,70,19],[70,20,70,21],[70,22,70,23],[53,8,53,11],[59,3,59,28],[39,8,39,14],[38,15,38,20],[39,21,39,27],[49,5,49,27],[51,11,51,13],[39,15,39,20],[51,5,51,7],[51,17,51,27],[53,17,53,19],[205,3,205,10],[201,3,201,10],[202,3,202,10],[201,16,201,20],[201,21,201,25],[196,21,196,25],[197,3,197,10],[198,3,198,10],[199,3,199,10],[198,11,198,15],[199,11,199,15],[197,11,197,15],[200,3,200,10],[197,16,197,20],[198,16,198,20],[199,16,199,20],[200,16,200,20],[197,21,197,25],[198,21,198,25],[199,21,199,25],[205,16,205,17],[205,23,205,25],[308,3,308,13],[308,14,308,15],[308,16,308,17],[308,18,308,19],[298,3,298,13],[298,14,298,15],[298,16,298,17],[296,3,297,13],[296,14,297,15],[296,16,297,17],[300,3,300,13],[305,3,305,13],[300,14,300,15],[305,14,305,15],[300,16,300,17],[305,16,305,17],[300,18,300,19],[305,18,305,19],[296,18,297,19],[298,18,298,19],[299,3,299,13],[299,14,299,15],[299,16,299,17],[299,18,299,19],[309,3,309,13],[309,14,309,15],[309,16,309,17],[309,18,309,19],[310,3,310,13],[310,14,310,15],[310,16,310,17],[310,18,310,19],[311,3,311,13],[311,14,311,15],[311,16,311,17],[311,18,311,19],[312,3,312,13],[312,14,312,15],[312,16,312,17],[312,18,312,19],[313,18,313,19],[328,8,328,14],[328,19,328,20],[328,25,328,26],[330,13,330,14],[325,11,325,26],[320,11,320,26],[332,11,332,13],[332,3,332,10],[334,3,334,10],[335,3,335,10],[336,3,336,10],[337,3,337,10],[338,3,338,10],[339,3,339,10],[340,3,340,10],[351,11,351,13],[352,11,352,13],[341,3,341,10],[342,3,342,10],[343,3,343,10],[334,11,334,13],[335,11,335,13],[336,11,336,13],[337,11,337,13],[338,11,338,13],[339,11,339,13],[340,11,340,13],[341,11,341,13],[342,11,342,13],[343,11,343,13],[368,3,368,13],[368,14,368,16],[369,3,369,13],[369,14,369,16],[370,3,370,13],[370,14,370,16],[371,3,371,13],[371,14,371,16],[380,3,380,13],[380,14,380,16],[381,3,381,13],[381,14,381,16],[382,3,382,13],[382,14,382,16],[383,3,383,13],[383,14,383,16],[384,3,384,13],[384,14,384,16],[385,3,385,13],[385,14,385,16],[403,17,403,18],[404,17,404,18],[405,17,405,18],[407,17,407,18],[406,3,406,13],[406,14,406,16],[406,17,406,18],[386,3,386,13],[386,14,386,16],[387,3,387,13],[387,14,387,16],[397,3,397,13],[397,14,397,16],[395,7,395,18],[422,3,422,13],[422,14,422,16],[421,3,421,13],[420,3,420,13],[420,14,420,16],[421,14,421,16],[398,3,398,13],[398,14,398,16],[399,3,399,13],[399,14,399,16],[401,3,401,13],[401,14,401,16],[402,3,402,13],[402,14,402,16],[403,3,403,13],[403,14,403,16],[400,3,400,13],[400,14,400,16],[404,3,404,13],[404,14,404,16],[405,3,405,13],[405,14,405,16],[407,3,407,13],[407,14,407,16],[597,15,597,16],[586,15,586,16],[587,15,587,16],[588,15,588,16],[589,15,589,16],[590,15,590,16],[591,15,591,16],[592,15,592,16],[593,15,593,16],[594,15,594,16],[595,15,595,16],[596,15,596,16],[557,13,557,15],[557,16,557,18],[427,14,427,16],[430,3,430,13],[430,14,430,16],[430,17,430,18],[428,3,428,13],[428,14,428,16],[428,17,428,18],[427,3,427,13],[429,3,429,13],[429,14,429,16],[429,17,429,18],[439,3,439,13],[440,3,440,13],[441,3,441,13],[443,3,443,13],[444,3,444,13],[444,14,444,16],[461,3,461,13],[461,14,461,16],[469,3,469,13],[469,14,469,16],[451,3,451,13],[20,11,21,19],[425,17,425,18],[426,17,426,18],[427,17,427,18],[455,3,455,13],[456,3,456,13],[455,14,455,16],[456,14,456,16],[425,3,425,13],[426,3,426,13],[440,14,440,16],[439,14,439,16],[441,14,441,16],[443,14,443,16],[431,3,431,13],[431,14,431,16],[431,17,431,18],[432,3,432,13],[432,14,432,16],[432,17,432,18],[425,14,425,16],[366,3,366,13],[418,3,418,13],[418,14,418,16],[116,3,116,13],[117,3,117,13],[116,14,116,16],[117,14,117,16],[116,17,116,19],[117,17,117,19],[133,3,133,10],[134,3,134,10],[133,11,133,12],[134,11,134,12],[133,13,133,15],[134,13,134,15],[133,16,133,18],[134,16,134,18],[133,19,133,21],[134,19,134,21],[132,3,132,10],[132,11,132,12],[132,13,132,15],[130,3,131,10],[130,11,131,12],[130,13,131,15],[118,3,118,13],[118,14,118,16],[133,22,133,23],[134,22,134,23],[133,24,133,25],[134,24,134,25],[163,20,163,22],[164,20,164,22],[165,3,165,10],[165,11,165,13],[165,14,165,16],[165,17,165,19],[165,20,165,22],[163,23,163,24],[165,23,165,24],[135,24,135,25],[136,3,136,10],[136,11,136,12],[136,13,136,15],[136,16,136,18],[136,19,136,21],[136,22,136,23],[136,24,136,25],[135,3,135,10],[135,11,135,12],[135,13,135,15],[416,3,416,13],[416,14,416,16],[417,3,417,13],[417,14,417,16],[442,3,442,13],[164,23,164,24],[178,3,178,10],[178,11,178,15],[178,16,178,18],[178,19,178,21],[178,22,178,25],[269,3,269,13],[269,14,269,16],[269,17,269,19],[166,23,166,24],[176,3,176,10],[177,3,177,10],[176,11,176,15],[177,11,177,15],[176,16,176,18],[177,16,177,18],[176,22,176,25],[419,3,419,13],[419,14,419,16],[306,3,306,13],[307,3,307,13],[306,14,306,15],[307,14,307,15],[306,16,306,17],[307,16,307,17],[306,18,306,19],[307,18,307,19],[367,3,367,13],[366,14,366,16],[367,14,367,16],[362,3,362,13],[333,11,333,13],[333,3,333,10],[361,3,361,13],[362,14,362,16],[361,14,361,16],[363,3,363,13],[363,14,363,16],[344,11,344,13],[344,3,344,10],[348,11,348,13],[349,11,349,13],[350,11,350,13],[482,3,482,10],[482,11,482,13],[482,14,482,18],[482,19,482,21],[493,3,493,16],[493,17,493,19],[426,14,426,16],[423,3,423,13],[423,14,423,16],[423,17,423,18],[424,3,424,13],[442,14,442,16],[424,14,424,16],[424,17,424,18],[458,3,458,13],[458,14,458,16],[459,3,459,13],[459,14,459,16],[460,3,460,13],[460,14,460,16],[452,3,452,13],[451,14,451,16],[452,14,452,16],[453,3,453,13]]}
[null,null,null,null,null,null,null,null,null,null,null,null,null,null,null,null,null,null,null,null,null,null,null,null,null,null,null,null,null,null,null,null,null,null,null,null,null,"Error"]
[null,null,null,"       INDIVIDUAL TAX RETURN INFORMATION FOR THE YEAR ENDED 30 JUNE 2019",null,null,null,null,null,null,null,null,null,null,null,null,null,null,null,null,null,null,null,null,null,null,null,null,null,null,null,null,null,null,null,null,null,"Count"]
[]
[null,null,null,"This form is interactive. Depending on your responses to the \"Yes / No\" questions, you will be prompted for further information. When you"]
[null,null,null,"have completed the form, please save it to your device, then send it to us by email or by using the \"Online Submission\" page on our website."]
[null,null,null,"Depending on your circumstances, it may also be necessary to attach additional information or supporting documents. If this is the case,"]
[null,null,null,"these will be listed at the end of the form, after you have completed all questions. We will contact you if we need further details or"]
[null,null,null,"clarification of any matters."]
[]
[null,null,null,"Please answer ALL of the prompted questions. All monetary information should be rounded to the nearest whole dollar."]
[null,null,null,"All input is to boxes like this. Dates should be entered as dd/mm/yy",null,null,null,null,null,null,null,null,null,null,null," After each entry, press \"ENTER\" or select another input cell."]
[null,null,null,"It may occasionally be necessary to scroll down to see the next prompted question (use your mouse wheel, or the right-hand scroll bar)."]
[null,null,null,"If you select the wrong \"Yes / No\" answer to a question, you can correct this simply by selecting again."]
[null,null,null,"After you complete and verify the form, Red font will indicate any missing information."]
[]
[null,null,null,"To use this form, you MUST have \"Macros\" enabled in your version of Microsoft Excel."]
[null,null,null,"If you see a Security Warning that \"Macros have been disabled\", simply click on the \"Options\" button and select \"Enable this content\"."]
[null,null,null,"Otherwise, Select the \"File\" menu in the top left-hand corner (or, in older versions, the \"Office\" button), then:"]
[null,null,null," - Options / Trust Center / Trust Center Settings / Macro Settings, and choose \"Enable all macros . . . . \""]
[]
[null,null,null,null,null,null,null,null,null,null,null,"You can test your Macro settings HERE >>"]
[]
[]
[]
[]
[null,null,null,"Important Note:"]
[null,null,null,"This form is intended merely to help you provide the information we need to prepare your income tax return. It covers the key income and"]
[null,null,null,"expense items which are relevant for most individual taxpayers. No warranty is made of completeness, and you remain primarily responsible"]
[null,null,null,"to provide us with complete and accurate information. If you have derived any other taxable income which is NOT included on this form"]
[null,null,null,"(for example, income from business activities), please ensure that this is separately disclosed."]
[]
[null,null,null,"By completing this form and submitting it to us, you are confirming that:"]
[null,null,null," - you have read, and agree with, the Terms of Engagement available on our website, and"]
[null,null,null," - you agree to appoint KMT Consulting as your Tax Agent (if you have not already done so)."]
[]
[]
[null,null,null,"YOUR NAME AND CONTACT INFORMATION"]
[]
[null,null,null,null,null,null,null,null,"First Name (full legal name)",null,null,null,null,null,null,"Middle Name (optional)",null,null,null,null,null,"Surname (Family name)"]
[null,null,null,"Please enter your name:"]
[null,null,null,{"$f":"IF(finalise=\"\",\"\",IF(OR(firstname=\"\",V40=\"\"),\"Input required\",\"\"))","v":""},null,null,null,null,null,null,null,null,null,null,null,null,null,null,null,null,null,null,null,null,null,null,null,null,null,null,null,null,null,null,null,null,null,{"$f":"IF(D41=\"\",0,1)","v":0}]
[null,null,null,"Are you an existing client of KMT Consulting?",null,null,null,null,null,null,null,null,null,null,null,null,null,null,null,null,null,{"$f":"IF(B42=\"\",\"\",B42)","v":""}]
[null,null,null,{"$f":"IF(existingyn=\"No\",\"Please provide proof of identity (eg: copy of birth certificate, driver's licence or passport)\",\"\")","v":""}]
[]
[null,null,null,"Have any of your contact details changed since your last tax lodgement? (address / phone / email)?",null,null,null,null,null,null,null,null,null,null,null,null,null,null,null,null,null,{"$f":"IF(B45=\"\",\"\",B45)","v":""}]
[]
[]
[null,null,null,"Please provide your current details:"]
[]
[null,null,null,"Address:"]
[]
[null,null,null,"Phone:",null,null,null,null,null,"Mobile:",null,null,null,null,null,"Email:"]
[null,null,null,{"$f":"IF(finalise=\"\",\"\",IF(AND(detailsyn=\"Yes\",clientaddress=\"\",F52=\"\",L52=\"\",R52=\"\"),\"Input required\",\"\"))","v":""},null,null,null,null,null,null,null,null,null,null,null,null,null,null,null,null,null,null,null,null,null,null,null,null,null,null,null,null,null,null,null,null,null,{"$f":"IF(D53=\"\",0,1)","v":0}]
[null,null,null,"Your Tax File Number:",null,null,null,null,null,null,null,null,null,"Your date of birth:",null,null,null,null,null,null,"  dd/mm/yy"]
[null,null,null,{"$f":"IF(finalise=\"\",\"\",IF(AND(existingyn=\"No\",OR(clientaddress=\"\",I54=\"\",R54=\"\")),\"Input Required\",\"\"))","v":""},null,null,null,null,null,null,null,null,null,null,null,null,null,null,null,null,null,null,null,null,null,null,null,null,null,null,null,null,null,null,null,null,null,{"$f":"IF(D55=\"\",0,1)","v":0}]
[]
[]
[]
[]
[null,null,null,"INCOME DETAILS"]
[]
[null,null,null,"Did you earn any income as an employee?",null,null,null,null,null,null,null,null,null,null,null,null,null,null,null,null,null,{"$f":"IF(B62=\"\",\"\",B62)","v":""}]
[]
[null,null,null,"What is your occupation?"]
[]
[null,null,null,"Are you able to attach ALL your employee payment summaries?",null,null,null,null,null,null,null,null,null,null,null,null,null,null,null,null,null,{"$f":"IF(B66=\"\",\"\",B66)","v":""}]
[]
[null,null,null,"Please supply the following information for any payment summaries you are NOT able to attach:"]
[]
[null,null,null,"Payer Name",null,null,null,null,null,null,null,"Payer ABN",null,null,"Gross",null,null,"Tax Withheld",null,null,"RFBA",null,"RESC",null,"Allow's",null,"Lump Sum",null,"Type"]
[]
[]
[]
[]
[]
[null,null,null,{"$f":"IF(finalise=\"\",\"\",IF(AND(pmtsumyn=\"No\",SUM(O71:AB75)=0),\"Input required\",\"\"))","v":""},null,null,null,null,null,null,null,null,null,null,null,null,null,null,null,null,null,null,null,null,null,null,null,null,null,null,null,null,null,null,null,null,null,{"$f":"IF(D76=\"\",0,1)","v":0}]
[]
[null,null,null,"Did you receive any Employment Termination Payments (ETP's)?",null,null,null,null,null,null,null,null,null,null,null,null,null,null,null,null,null,{"$f":"IF(B78=\"\",\"\",B78)","v":""}]
[]
[]
[null,null,null,"Are you able to attach a copy of all ETP statements?",null,null,null,null,null,null,null,null,null,null,null,null,null,null,null,null,null,{"$f":"IF(B81=\"\",\"\",B81)","v":""}]
[]
[null,null,null,"Please supply the following information for any ETP statements you are NOT able to attach:"]
[]
[null,null,null,"Payer Name",null,null,null,null,null,null,null,"Payer ABN",null,null,"Date Paid",null,null,"Taxable component",null,null,null,"Tax Withheld"]
[]
[]
[null,null,null,{"$f":"IF(finalise=\"\",\"\",IF(AND(etpattachyn=\"No\",SUM(R86:X87)=0),\"Input required\",\"\"))","v":""},null,null,null,null,null,null,null,null,null,null,null,null,null,null,null,null,null,null,null,null,null,null,null,null,null,null,null,null,null,null,null,null,null,{"$f":"IF(D88=\"\",0,1)","v":0}]
[]
[null,null,null,"Did you receive any Government pensions or allowances?",null,null,null,null,null,null,null,null,null,null,null,null,null,null,null,null,null,{"$f":"IF(B90=\"\",\"\",B90)","v":""}]
[null,null,null,"(Do NOT include Family Tax Benefit)"]
[]
[]
[null,null,null,"These details are usually available from the ATO. Do you want us to rely on the ATO information?",null,null,null,null,null,null,null,null,null,null,null,null,null,null,null,null,null,{"$f":"IF(B94=\"\",\"\",B94)","v":""}]
[]
[null,null,null,"Please provide the following information, or attach document copies:"]
[]
[null,null,null,"Type of payment",null,null,null,null,null,null,null,null,null,null,"Gross",null,null,"Tax Withheld"]
[]
[]
[null,null,null,{"$f":"IF(finalise=\"\",\"\",IF(AND(atopensyn=\"No\",SUM(O99:T100)=0),\"Input required\",\"\"))","v":""},null,null,null,null,null,null,null,null,null,null,null,null,null,null,null,null,null,null,null,null,null,null,null,null,null,null,null,null,null,null,null,null,null,{"$f":"IF(D101=\"\",0,1)","v":0}]
[]
[null,null,null,"Did you receive any assessable payments from Superannuation Funds?",null,null,null,null,null,null,null,null,null,null,null,null,null,null,null,null,null,{"$f":"IF(B103=\"\",\"\",B103)","v":""}]
[null,null,null,{"$f":"IF(supfundyn=\"Yes\",\"Please attach payment summaries.\",\"\")","v":""}]
[]
[]
[null,null,null,"Did you receive any INTEREST from financial institutions or other sources?",null,null,null,null,null,null,null,null,null,null,null,null,null,null,null,null,null,{"$f":"IF(B107=\"\",\"\",B107)","v":""}]
[]
[]
[null,null,null,"These details are usually available from the ATO. Do you want us to rely on the ATO information?",null,null,null,null,null,null,null,null,null,null,null,null,null,null,null,null,null,{"$f":"IF(B110=\"\",\"\",B110)","v":""}]
[]
[null,null,null,"Please provide the following information (for joint accounts, include your share only):"]
[]
[null,null,null,"Name of Financial Institution (or other source)",null,null,null,null,null,null,null,null,null,null,"Gross Interest",null,null,"Tax Withheld"]
[]
[]
[]
[]
[]
[]
[null,null,null,{"$f":"IF(finalise=\"\",\"\",IF(AND(atointyn=\"No\",SUM(O115:T120)=0),\"Input required\",\"\"))","v":""},null,null,null,null,null,null,null,null,null,null,null,null,null,null,null,null,null,null,null,null,null,null,null,null,null,null,null,null,null,null,null,null,null,{"$f":"IF(D121=\"\",0,1)","v":0}]
[]
[null,null,null,"Did you receive any DIVIDENDS from share investments?",null,null,null,null,null,null,null,null,null,null,null,null,null,null,null,null,null,{"$f":"IF(B123=\"\",\"\",B123)","v":""}]
[null,null,null,"You need to declare these even if they were automatically reinvested."]
[]
[null,null,null,"These details are usually available from the ATO. Do you want us to rely on the ATO information?",null,null,null,null,null,null,null,null,null,null,null,null,null,null,null,null,null,{"$f":"IF(B126=\"\",\"\",B126)","v":""}]
[]
[]
[null,null,null,"Please provide as much of the following information as you can, or attach document copies:"]
[]
[null,null,null,"Name of Company",null,null,null,null,null,null,null,"ASX\nCode",null,"Number of\nshares held",null,null,"Dividends Received",null,null,null,null,null,"Franking",null,"Tax"]
[null,null,null,null,null,null,null,null,null,null,null,null,null,null,null,null,"Unfranked",null,null,"Franked",null,null,"Credits",null,"Withheld"]
[]
[]
[]
[]
[]
[]
[null,null,null,{"$f":"IF(finalise=\"\",\"\",IF(AND(atodivsyn=\"No\",SUM(N133:Z138)=0),\"Input required\",\"\"))","v":""},null,null,null,null,null,null,null,null,null,null,null,null,null,null,null,null,null,null,null,null,null,null,null,null,null,null,null,null,null,null,null,null,null,{"$f":"IF(D139=\"\",0,1)","v":0}]
[]
[null,null,null,"Did you receive shares or options as part of an EMPLOYEE SHARE PLAN?",null,null,null,null,null,null,null,null,null,null,null,null,null,null,null,null,null,{"$f":"IF(B141=\"\",\"\",B141)","v":""}]
[]
[null,null,null,{"$f":"IF(esasyn=\"Yes\",\"Please attach the relevant documents from your employer.\",\"\")","v":""}]
[]
[null,null,null,"Did you receive any income from MANAGED INVESTMENTS?",null,null,null,null,null,null,null,null,null,null,null,null,null,null,null,null,null,{"$f":"IF(B145=\"\",\"\",B145)","v":""}]
[null,null,null,"(NOT including superannuation funds)"]
[null,null,null,{"$f":"IF(mgdinvyn=\"Yes\",\"Your fund manager should have provided you with a Tax Statement. Please attach a copy.\",\"\")","v":""}]
[]
[]
[null,null,null,"Do you run a BUSINESS of any kind?"]
[null,null,null,"(Whether as a Sole Trader or through another structure such as a Partnership, Trust or Company)?",null,null,null,null,null,null,null,null,null,null,null,null,null,null,null,null,null,{"$f":"IF(B150=\"\",\"\",B150)","v":""}]
[]
[null,null,null,{"$f":"IF(businessyn=\"Yes\",\"This type of income is outside the scope of this form. Please see the Business Checklist on our website\",\"\")","v":""}]
[null,null,null,{"$f":"IF(businessyn=\"Yes\",\"and supply all relevant information listed thereon.\",\"\")","v":""}]
[]
[]
[null,null,null,"Have you sold any shares or property which has resulted in a CAPITAL GAIN OR LOSS?",null,null,null,null,null,null,null,null,null,null,null,null,null,null,null,null,null,{"$f":"IF(B157=\"\",\"\",B157)","v":""}]
[]
[null,null,null,"Please provide the following details AND attach supporting documents:"]
[]
[null,null,null,"Asset Description\n(eg: Share Code or Property Address)",null,null,null,null,null,null,null,"Date of Purchase",null,null,"Purchase price\n(see Note 1)",null,null,"Date of\nSale",null,null,"Sale Proceeds\n(see Note 2)",null,null,"Share of\nownership"]
[]
[]
[]
[]
[]
[]
[null,null,null,{"$f":"IF(finalise=\"\",\"\",IF(AND(cgtyn=\"Yes\",SUM(O163:Q167)+SUM(U163:W167)=0),\"Input required\",\"\"))","v":""},null,null,null,null,null,null,null,null,null,null,null,null,null,null,null,null,null,null,null,null,null,null,null,null,null,null,null,null,null,null,null,null,null,{"$f":"IF(D168=\"\",0,1)","v":0}]
[null,null,null,"Note 1:  Purchase price should include all incidental costs (eg: legal fees, stamp duties, valuations, registrations)."]
[null,null,null,"Note 2:  Sale Proceeds should be the net amount remaining AFTER deducting any selling expenses (eg: commissions, legal fees)."]
[]
[]
[null,null,null,"Did you receive any FOREIGN INCOME? (eg: foreign pensions, or from working overseas)?",null,null,null,null,null,null,null,null,null,null,null,null,null,null,null,null,null,{"$f":"IF(B173=\"\",\"\",B173)","v":""}]
[]
[null,null,null,"Please describe the nature of the income and the amount received:"]
[]
[null,null,null,"Type of Income",null,null,null,null,null,null,null,"Country",null,null,null,null,"Gross Amount",null,null,"Tax Withheld",null,null,"Currency"]
[]
[]
[]
[null,null,null,{"$f":"IF(finalise=\"\",\"\",IF(AND(forincyn=\"Yes\",SUM(Q178:V180)=0),\"Input required\",\"\"))","v":""},null,null,null,null,null,null,null,null,null,null,null,null,null,null,null,null,null,null,null,null,null,null,null,null,null,null,null,null,null,null,null,null,null,{"$f":"IF(D181=\"\",0,1)","v":0}]
[]
[]
[null,null,null,"Did you receive any RENTAL PROPERTY INCOME?",null,null,null,null,null,null,null,null,null,null,null,null,null,null,null,null,null,{"$f":"IF(B184=\"\",\"\",B184)","v":""}]
[]
[]
[null,null,null,"Are you attaching any annual rental summaries from estate agents or property managers?",null,null,null,null,null,null,null,null,null,null,null,null,null,null,null,null,null,{"$f":"IF(B187=\"\",\"\",B187)","v":""}]
[]
[null,null,null,{"$f":"IF(attachrentyn=\"Yes\",\"Please list below ONLY those income and expense items which DO NOT appear on any attached summaries:\",\"Please list below ALL income and expenses for each property:\")","v":"Please list below ALL income and expenses for each property:"}]
[null,null,null,"Pre-filled item descriptions are for your guidance only. You can change these by typing over them if necessary."]
[null,null,null,"(Include 100% of income and expenses, even if you are not the sole owner of the property)"]
[null,null,null,{"$f":"IF(finalise=\"\",\"\",IF(AND(rentyn=\"Yes\",SUM(L201:Z247)=0),\"Input required\",\"\"))","v":""},null,null,null,null,null,null,null,null,null,null,null,null,null,null,null,null,null,null,null,null,null,null,null,null,null,null,null,null,null,null,null,null,null,{"$f":"IF(D192=\"\",0,1)","v":0}]
[null,null,null,null,null,null,null,null,null,null,null,"Property 1",null,null,null,null,"Property 2",null,null,null,null,"Property 3"]
[null,null,null,"Property Address >>"]
[]
[]
[null,null,null,"No. of weeks rented (if not full year) >"]
[null,null,null,"INCOME"]
[null,null,null,"Gross Rent received"]
[null,null,null,"Reimbursements for water, electricity, etc"]
[null,null,null,"Total Rent and other income",null,null,null,null,null,null,null,{"$f":"SUM(L199:P200)","v":0},null,null,null,null,{"$f":"SUM(Q199:U200)","v":0},null,null,null,null,{"$f":"SUM(V199:Z200)","v":0}]
[null,null,null,"COSTS & EXPENSES"]
[null,null,null,"Advertising"]
[null,null,null,"Agent / Management Fees"]
[null,null,null,"Borrowing or Refinancing Costs"]
[null,null,null,"Bank Charges"]
[null,null,null,"Body Corporate / Strata Levies"]
[null,null,null,"Cleaning"]
[null,null,null,"Electricity & Gas"]
[null,null,null,"Gardening / Lawnmowing"]
[null,null,null,"GST on Management Fees"]
[null,null,null,"Inspections, Reports, Valuations"]
[null,null,null,"Insurance - Building and/or Contents"]
[null,null,null,"Insurance - Landlord"]
[null,null,null,"Interest on Mortgage"]
[null,null,null,"Land Tax"]
[null,null,null,"Lease Preparation Fees"]
[null,null,null,"Legal Expenses"]
[null,null,null,"Pest Control"]
[null,null,null,"Rates - Council"]
[null,null,null,"Rates - Water"]
[null,null,null,"Repairs - Electrical"]
[null,null,null,"Repairs - Plumbing"]
[null,null,null,"Repairs - Other"]
[null,null,null,"Stationery, Postage, Telephone"]
[null,null,null,"Other Expenses"]
[]
[]
[]
[]
[]
[]
[null,null,null,"CAPITAL ITEMS"]
[null,null,null,"(eg: furniture, electrical equipment, carpets, hot water system, structural improvements)"]
[]
[null,null,null,"Please list separately, with purchase date",null,null,null,null,null,null,null,"Date",null,"$",null,null,"Date",null,"$",null,null,"Date",null,"$"]
[]
[]
[]
[]
[]
[]
[]
[]
[]
[]
[null,null,null,"Total Costs & Expenses",null,null,null,null,null,null,null,null,null,{"$f":"SUM(N203:P246)","v":0},null,null,null,null,{"$f":"SUM(S203:U246)","v":0},null,null,null,null,{"$f":"SUM(X203:Z246)","v":0}]
[]
[null,null,null,"In addition to the above information, please attach copies of any depreciation or capital allowance schedules"]
[null,null,null,"(unless you have already provided these)."]
[]
[null,null,null,"Has KMT Consulting previously accounted for ALL of these properties?",null,null,null,null,null,null,null,null,null,null,null,null,null,null,null,null,null,{"$f":"IF(B252=\"\",\"\",B252)","v":""}]
[]
[null,null,null,"Please provide the following information (unless you have already done so in a previous year):"]
[]
[null,null,null,null,null,null,null,null,null,null,null,"Property 1",null,null,null,null,"Property 2",null,null,null,null,"Property 3"]
[null,null,null,"Your ownership percentage"]
[null,null,null,"Date of purchase"]
[null,null,null,"Date you started collecting rent"]
[null,null,null,"Purchase price (incl. all incidentals)"]
[null,null,null,"Borrowing expenses"]
[]
[]
[null,null,null,"Have you received ANY OTHER INCOME which has not yet been included?",null,null,null,null,null,null,null,null,null,null,null,null,null,null,null,null,null,{"$f":"IF(B264=\"\",\"\",B264)","v":""}]
[]
[null,null,null,"Please provide details below:"]
[]
[null,null,null,"Type and source of income",null,null,null,null,null,null,null,null,null,null,"Gross",null,null,"Tax Withheld"]
[]
[]
[]
[null,null,null,{"$f":"IF(finalise=\"\",\"\",IF(AND(otherincyn=\"Yes\",SUM(O269:T271)=0),\"Input required\",\"\"))","v":""},null,null,null,null,null,null,null,null,null,null,null,null,null,null,null,null,null,null,null,null,null,null,null,null,null,null,null,null,null,null,null,null,null,{"$f":"IF(D272=\"\",0,1)","v":0}]
[]
[]
[]
[]
[null,null,null,"DEDUCTIBLE EXPENSES"]
[]
[null,null,null,"Please ensure that you list ONLY those expenses which you have incurred to earn your income. There must be a clear connection"]
[null,null,null,"between the nature of the expense and your occupation. Where expenses are partly for private purposes, these must be"]
[null,null,null,"apportioned on a reasonable basis. You are required to retain documentary evidence of all claims for at least 5 years."]
[null,null,null,"If requested by the ATO, you MUST be able to substantiate all claims listed here."]
[]
[null,null,null,"Did you incur any deductible expenses AS AN EMPLOYEE?",null,null,null,null,null,null,null,null,null,null,null,null,null,null,null,null,null,{"$f":"IF(B284=\"\",\"\",B284)","v":""}]
[]
[null,null,null,{"$f":"IF(AND(employeeyn=\"No\",wreyn=\"Yes\"),\"You have NOT indicated any employee income above. Please check before proceeding.\",IF(wreyn=\"No\",\"The Work-Related Expenses section of this form is not applicable.\",\"\"))","v":""}]
[]
[]
[null,null,null,"Did you have to use your personal CAR for work purposes (other than to or from work)?",null,null,null,null,null,null,null,null,null,null,null,null,null,null,null,null,null,{"$f":"IF(B289=\"\",\"\",B289)","v":""}]
[null,null,null,"(eg: for mail or banking, between jobs or offices, visiting customers or suppliers, attending training)?"]
[]
[]
[null,null,null,"Did you travel more than 5,000 kms for work purposes?",null,null,null,null,null,null,null,null,null,null,null,null,null,null,null,null,null,{"$f":"IF(B293=\"\",\"\",B293)","v":""}]
[]
[null,null,null,"Please complete the following information (reasonable estimates are acceptable):"]
[]
[null,null,null,"Destination and purpose of trip",null,null,null,null,null,null,null,null,null,null,"No of trips",null,"Kms per trip",null,"Total Kms"]
[]
[null,null,null,null,null,null,null,null,null,null,null,null,null,null,null,null,null,null,{"$f":"IF(O299=\"\",Q299,O299*Q299)","v":0}]
[null,null,null,null,null,null,null,null,null,null,null,null,null,null,null,null,null,null,{"$f":"IF(O300=\"\",Q300,O300*Q300)","v":0}]
[null,null,null,null,null,null,null,null,null,null,null,null,null,null,null,null,null,null,0]
[null,null,null,null,null,null,null,null,null,null,null,null,null,null,null,null,null,null,{"$f":"IF(O302=\"\",Q302,O302*Q302)","v":0}]
[null,null,null,null,null,null,null,null,null,null,null,null,null,null,null,null,null,null,0]
[null,null,null,null,null,null,null,null,null,null,null,null,null,null,null,null,null,null,0]
[null,null,null,null,null,null,null,null,null,null,null,null,null,null,null,null,null,null,0]
[null,null,null,null,null,null,null,null,null,null,null,null,null,null,null,null,null,null,0]
[null,null,null,null,null,null,null,null,null,null,null,null,null,null,null,null,null,null,0]
[null,null,null,null,null,null,null,null,null,null,null,null,null,null,null,null,null,null,0]
[null,null,null,null,null,null,null,null,null,null,null,null,null,null,null,null,null,null,0]
[null,null,null,null,null,null,null,null,null,null,null,null,null,null,null,null,null,null,0]
[null,null,null,null,null,null,null,null,null,null,null,null,null,null,null,null,null,null,0]
[null,null,null,null,null,null,null,null,null,null,null,null,null,null,null,null,null,null,0]
[null,null,null,null,null,null,null,null,null,null,null,null,null,null,null,null,null,null,0]
[null,null,null,{"$f":"IF(finalise=\"\",\"\",IF(AND(caryn=\"Yes\",fivekyn=\"No\",SUM(O299:R313)=0),\"Input required\",\"\"))","v":""},null,null,null,null,null,null,null,null,null,null,null,null,null,null,{"$f":"SUM(S299:T313)","v":0},null,null,null,null,null,null,null,null,null,null,null,null,null,null,null,null,null,null,{"$f":"IF(D314=\"\",0,1)","v":0}]
[]
[]
[null,null,null,"Do you want to base your claim on a valid LOG BOOK which is less than 5 years old?",null,null,null,null,null,null,null,null,null,null,null,null,null,null,null,null,null,{"$f":"IF(B317=\"\",\"\",B317)","v":""}]
[]
[null,null,null,{"$f":"IF(logbkyn=\"No\",\"The claim on your tax return will be limited to 5,000 kms.\",\"\")","v":""}]
[]
[null,null,null,"What was the main purpose of your travel?"]
[]
[]
[null,null,null,"Please provide the following information:"]
[]
[null,null,null,"What was the main purpose of your travel?"]
[]
[]
[null,null,null,"Make & model of vehicle >",null,null,null,null,null,null,null,null,null,null,null,null,null,null,"Purchase price > ",null,null,null,null,null,"Date purchased > "]
[]
[null,null,null,"Work-related use of vehicle as calculated in log book >"]
[]
[null,null,null,"Vehicle Expenses Incurred",null,null,null,null,null,null,null,"$"]
[null,null,null,"Fuel & Oil"]
[null,null,null,"Registration"]
[null,null,null,"CTP greenslip insurance"]
[null,null,null,"Other insurance"]
[null,null,null,"Service"]
[null,null,null,"Tyres"]
[null,null,null,"Other repairs"]
[null,null,null,"Lease payments"]
[null,null,null,"Loan Interest (see note below)"]
[]
[]
[null,null,null,"Total Vehicle Expenses",null,null,null,null,null,null,null,{"$f":"SUM(L333:N344)","v":0}]
[null,null,null,{"$f":"IF(finalise=\"\",\"\",IF(AND(logbkyn=\"Yes\",SUM(L334:N344)=0),\"Input required\",\"\"))","v":""},null,null,null,null,null,null,null,null,null,null,null,null,null,null,null,null,null,null,null,null,null,null,null,null,null,null,null,null,null,null,null,null,null,{"$f":"IF(D346=\"\",0,1)","v":0}]
[null,null,null,"Note:  If loan interest is not known, please provide the following:"]
[]
[null,null,null,"Amount borrowed"]
[null,null,null,"Amount of each repayment"]
[null,null,null,"Repayment frequency",null,null,null,null,null,null,null,null,null,null,"(ie: Weekly / Fortnightly / Monthly)"]
[null,null,null,"Term of the loan (number of years)"]
[null,null,null,"Final residual payment required (if any)?"]
[]
[]
[]
[null,null,null,"Did you incur any other TRAVEL EXPENSES (other than to-or-from work)?",null,null,null,null,null,null,null,null,null,null,null,null,null,null,null,null,null,{"$f":"IF(B357=\"\",\"\",B357)","v":""}]
[null,null,null,"(eg: Tolls, taxis, trains, parking, airfares, meals, accommodation)"]
[]
[null,null,null,"Please provide the following information:"]
[]
[null,null,null,"Type of travel expense and purpose of trip",null,null,null,null,null,null,null,null,null,null,"Cost $"]
[]
[]
[]
[]
[]
[]
[]
[]
[]
[]
[null,null,null,{"$f":"IF(finalise=\"\",\"\",IF(AND(travyn=\"Yes\",SUM(O363:Q372)=0),\"Input required\",\"\"))","v":""},null,null,null,null,null,null,null,null,null,null,null,null,null,null,null,null,null,null,null,null,null,null,null,null,null,null,null,null,null,null,null,null,null,{"$f":"IF(D373=\"\",0,1)","v":0}]
[]
[null,null,null,"Did you have to wear PROTECTIVE CLOTHING or a UNIFORM?",null,null,null,null,null,null,null,null,null,null,null,null,null,null,null,null,null,{"$f":"IF(B375=\"\",\"\",B375)","v":""}]
[null,null,null,"Note that conventional clothing - (eg: a business suit or general office attire) - is NOT deductible."]
[]
[null,null,null,"Please provide the following information:"]
[null,null,null,"For your convenience, the most common items have been pre-filled. You can delete or change them if necessary."]
[]
[null,null,null,"Clothing and Uniform expense details",null,null,null,null,null,null,null,null,null,null,"Cost $"]
[null,null,null,"Uniforms"]
[null,null,null,"Boots"]
[null,null,null,"Gloves, Safety wear"]
[null,null,null,"Hats, Sunscreen"]
[null,null,null,"Other protective clothing"]
[]
[]
[null,null,null,{"$f":"IF(finalise=\"\",\"\",IF(AND(clothyn=\"Yes\",SUM(O382:Q388)=0),\"Input required\",\"\"))","v":""},null,null,null,null,null,null,null,null,null,null,null,null,null,null,null,null,null,null,null,null,null,null,null,null,null,null,null,null,null,null,null,null,null,{"$f":"IF(D389=\"\",0,1)","v":0}]
[]
[null,null,null,"Did you undertake EDUCATION which directly relates to your employment?",null,null,null,null,null,null,null,null,null,null,null,null,null,null,null,null,null,{"$f":"IF(B391=\"\",\"\",B391)","v":""}]
[]
[null,null,null,"Please provide the following information:"]
[null,null,null,"For your convenience, the most common items have been pre-filled. You can delete or change them if necessary."]
[]
[null,null,null,"Name of course:"]
[]
[null,null,null,"Education expenses incurred",null,null,null,null,null,null,null,null,null,null,"Cost $",null,null,"%"]
[null,null,null,"Course fees",null,null,null,null,null,null,null,null,null,null,null,null,null,"Work-related use\nif NOT\n100%"]
[null,null,null,"Textbooks"]
[null,null,null,"Stationery"]
[null,null,null,"Travel to courses (trains, buses, taxis)"]
[null,null,null,"Travel to courses (by car) - Number of kilometers only",null,null,null,null,null,null,null,null,null,null,"kms"]
[null,null,null,"Internet use"]
[null,null,null,"Computers / Electronic tablets"]
[null,null,null,"Computer software & accessories"]
[]
[]
[null,null,null,{"$f":"IF(finalise=\"\",\"\",IF(AND(educyn=\"Yes\",SUM(O399:Q408)=0),\"Input required\",\"\"))","v":""},null,null,null,null,null,null,null,null,null,null,null,null,null,null,null,null,null,null,null,null,null,null,null,null,null,null,null,null,null,null,null,null,null,{"$f":"IF(D409=\"\",0,1)","v":0}]
[]
[null,null,null,"Did you incur any OTHER WORK-RELATED EXPENSES?",null,null,null,null,null,null,null,null,null,null,null,null,null,null,null,null,null,{"$f":"IF(B411=\"\",\"\",B411)","v":""}]
[null,null,null,"(EG: Union fees, tools, equipment, stationery, telephone, home office)?"]
[]
[null,null,null,"Please provide the following information:"]
[null,null,null,"For your convenience, the most common items have been pre-filled. You can delete or change them if necessary."]
[]
[null,null,null,"Other work-related expenses",null,null,null,null,null,null,null,null,null,null,"Cost $",null,null,"%"]
[null,null,null,"Union fees",null,null,null,null,null,null,null,null,null,null,null,null,null,"Work-related use\nif NOT\n100%"]
[null,null,null,"Other professional memberships"]
[null,null,null,"Licences, registrations"]
[null,null,null,"Training, Professional development"]
[null,null,null,"Stationery, Resources, Ink"]
[null,null,null,"Tools & equipment (see below if more than $300 per item)"]
[null,null,null,"Computer software & accessories"]
[null,null,null,"Internet use *"]
[null,null,null,"Mobile phone use *"]
[null,null,null,"Electricity for home office - Number of hours per week"]
[]
[]
[]
[]
[]
[]
[null,null,null,{"$f":"IF(finalise=\"\",\"\",IF(AND(otherwreyn=\"Yes\",SUM(O418:Q433)+SUM(O441:Q445)=0),\"Input required\",\"\"))","v":""},null,null,null,null,null,null,null,null,null,null,null,null,null,null,null,null,null,null,null,null,null,null,null,null,null,null,null,null,null,null,null,null,null,{"$f":"IF(D434=\"\",0,1)","v":0}]
[null,null,null," *  Claims for use of internet and mobile phone are attracting increasing scrutiny by the ATO."]
[null,null,null,"     In most cases, a 4-week diary is required to substantiate the work-related portion of use."]
[]
[null,null,null,"If you purchased tools or equipment costing MORE THAN $300 each, please provide details here:",null,null,null,null,null,null,null,null,null,null,null,null,null,null,null,null,null,{"$f":"IF(B438=\"\",\"\",B438)","v":""}]
[]
[null,null,null,"Description of tools or equipment",null,null,null,null,null,null,null,null,null,null,"Cost $"]
[]
[]
[]
[]
[]
[]
[]
[null,null,null,"Did you make any DONATIONS to any registered charities or School Building Funds?",null,null,null,null,null,null,null,null,null,null,null,null,null,null,null,null,null,{"$f":"IF(B448=\"\",\"\",B448)","v":""}]
[]
[null,null,null,"Please provide the following details:"]
[]
[null,null,null,"Name of Charity or Deductible Recipient",null,null,null,null,null,null,null,null,null,null,"$ Amount"]
[]
[]
[]
[]
[]
[]
[]
[]
[]
[]
[null,null,null,{"$f":"IF(finalise=\"\",\"\",IF(AND(donationsyn=\"Yes\",SUM(O453:Q462)=0),\"Input required\",\"\"))","v":""},null,null,null,null,null,null,null,null,null,null,null,null,null,null,null,null,null,null,null,null,null,null,null,null,null,null,null,null,null,null,null,null,null,{"$f":"IF(D463=\"\",0,1)","v":0}]
[]
[]
[null,null,null,"Did you pay another TAX AGENT (ie: not KMT Consulting) for your PRIOR YEAR tax return?",null,null,null,null,null,null,null,null,null,null,null,null,null,null,null,null,null,{"$f":"IF(B466=\"\",\"\",B466)","v":""}]
[]
[null,null,null,"Please provide the following details:"]
[]
[null,null,null,"Name of Tax Agent (if known)",null,null,null,null,null,null,null,null,null,null,"$ Amount"]
[]
[null,null,null,{"$f":"IF(finalise=\"\",\"\",IF(AND(otheragentyn=\"Yes\",O471=0),\"Input required\",\"\"))","v":""},null,null,null,null,null,null,null,null,null,null,null,null,null,null,null,null,null,null,null,null,null,null,null,null,null,null,null,null,null,null,null,null,null,{"$f":"IF(D472=\"\",0,1)","v":0}]
[]
[null,null,null,"Did you make any DEDUCTIBLE SUPER CONTRIBUTIONS (OTHER THAN through your employer)?",null,null,null,null,null,null,null,null,null,null,null,null,null,null,null,null,null,{"$f":"IF(B474=\"\",\"\",B474)","v":""}]
[]
[]
[null,null,null,"Has the Fund been notified of your intention to claim these contributions?",null,null,null,null,null,null,null,null,null,null,null,null,null,{"$f":"IF(AND(dedsuperyn=\"Yes\",noiyn=\"\"),\"Please select >\",\"\")","v":""},null,null,null,{"$f":"IF(B477=\"\",\"\",B477)","v":""},null,null,null,null,null,null,null,null,null,null,null,null,null,null,null,{"$f":"IF(R477=\"\",0,1)","v":0}]
[null,null,null,{"$f":"IF(AND(dedsuperyn=\"Yes\",noiyn=\"No\"),\"You will need to notify your Fund before claiming these contributions.\",\"\")","v":""}]
[]
[null,null,null,"Please provide the following details:"]
[]
[null,null,null,"Name of Superannuation Fund",null,null,null,null,null,null,null,"ABN of Fund",null,null,"Member or Account No.",null,null,null,null,"$ Amount"]
[]
[]
[null,null,null,{"$f":"IF(finalise=\"\",\"\",IF(AND(dedsuperyn=\"Yes\",SUM(T483:V484)=0),\"Input required\",\"\"))","v":""},null,null,null,null,null,null,null,null,null,null,null,null,null,null,null,null,null,null,null,null,null,null,null,null,null,null,null,null,null,null,null,null,null,{"$f":"IF(D485=\"\",0,1)","v":0}]
[]
[null,null,null,"Did you incur any OTHER DEDUCTIBLE EXPENSES which you have NOT YET INCLUDED?",null,null,null,null,null,null,null,null,null,null,null,null,null,null,null,null,null,{"$f":"IF(B487=\"\",\"\",B487)","v":""}]
[null,null,null,"(eg:  Income protection insurance; Expenses relating to dividend or investment income)?"]
[]
[null,null,null,"Please provide details below:"]
[]
[null,null,null,"Description of Expense",null,null,null,null,null,null,null,null,null,null,null,null,null,"$ Amount"]
[]
[]
[]
[null,null,null,{"$f":"IF(finalise=\"\",\"\",IF(AND(otherdedsyn=\"Yes\",SUM(R493:T495)=0),\"Input required\",\"\"))","v":""},null,null,null,null,null,null,null,null,null,null,null,null,null,null,null,null,null,null,null,null,null,null,null,null,null,null,null,null,null,null,null,null,null,{"$f":"IF(D496=\"\",0,1)","v":0}]
[]
[]
[]
[]
[]
[null,null,null,"OTHER ITEMS"]
[]
[]
[null,null,null,"Did you have PRIVATE HEALTH INSURANCE?",null,null,null,null,null,null,null,null,null,null,null,null,null,null,null,null,null,{"$f":"IF(B505=\"\",\"\",B505)","v":""}]
[]
[]
[null,null,null,"These details are usually available from the ATO. Do you want us to rely on the ATO information?",null,null,null,null,null,null,null,null,null,null,null,null,null,null,null,null,null,{"$f":"IF(B508=\"\",\"\",B508)","v":""}]
[]
[null,null,null,"Please provide the following details, or attach the annual tax statement from your insurer."]
[]
[null,null,null,"Member Number",null,null,null,"Fund ID",null,"Eligible premiums",null,null,"Govt Rebate received",null,null,"Rebate Code"]
[]
[]
[]
[]
[]
[]
[null,null,null,"The number of days you had an appropriate level of hospital cover:"]
[]
[]
[null,null,null,"How many DEPENDANT CHILDREN do you have?"]
[]
[null,null,null,"Do you have a SPOUSE (either married or de-facto)?",null,null,null,null,null,null,null,null,null,null,null,null,null,null,null,null,null,{"$f":"IF(B524=\"\",\"\",B524)","v":""}]
[]
[null,null,null,"Please provide the following information for your spouse:",null,null,null,null,null,null,null,null,null,null,null,null,null,null,null,null,null,{"$f":"IF(B526=\"\",\"\",B526)","v":""}]
[null,null,null,"(NOT REQUIRED if this information has been separately provided by your spouse)"]
[]
[null,null,null,"First Name:",null,null,null,null,null,null,null,null,null,null,"Family name:  ",null,null,null,null,null,null,null,null,null,"Date of Birth:  "]
[null,null,null,null,null,null,null,null,null,null,null,null,null,null,null,null,null,null,null,null,null,null,null,null,null,null,"dd/mm/yy"]
[null,null,null,"Spouse income details:"]
[null,null,null,"Taxable Income:"]
[null,null,null,"Reportable Fringe Benefits:"]
[null,null,null,"Reportable Super Contributions:"]
[null,null,null,"Govt pensions not included above:"]
[null,null,null,"Exempt pensions not included above:"]
[null,null,null,"Child support paid (if any):"]
[]
[]
[]
[]
[]
[null,null,null,"BANKING DETAILS"]
[]
[null,null,null,"It is now mandatory to provide BANK ACCOUNT DETAILS for ATO refunds. Please select ONE ONLY of the following options:"]
[]
[null,null,null,"1.","KMT Consulting already has my bank account details and they have not changed.",null,null,null,null,null,null,null,null,null,null,null,null,null,null,null,null,{"$f":"IF(bank1yn=\"Yes\",\"Yes\",\"\")","v":""}]
[]
[null,null,null,"2.","My details have changed, OR I would like to provide them again.",null,null,null,null,null,null,null,null,null,null,null,null,null,null,null,null,{"$f":"IF(bank2yn=\"Yes\",\"Yes\",\"\")","v":""}]
[]
[null,null,null,"3.","I am a new client, OR I am providing these details for the first time.",null,null,null,null,null,null,null,null,null,null,null,null,null,null,null,null,{"$f":"IF(bank3yn=\"Yes\",\"Yes\",\"\")","v":""}]
[]
[null,null,null,"If option 2 or 3 is chosen . . . ",null,null,null,null,null,null,null,null,null,null,null,null,null,{"$f":"IF(finalise=\"\",\"\",IF(AND(bank1yn=\"\",bank2yn=\"\",bank3yn=\"\"),\"Please select one of the above options\",\"\"))","v":""},null,null,null,null,null,null,null,null,null,null,null,null,null,null,null,null,null,null,null,{"$f":"IF(R553=\"\",0,1)","v":0}]
[null,null,null,"Please ensure that the following details are ACCURATELY provided."]
[]
[null,null,null,"Account Name",null,null,null,null,null,null,null,null,null,"BSB",null,null,"Account No."]
[]
[null,null,null,{"$f":"IF(finalise=\"\",\"\",IF(AND(OR(bank2yn=\"Yes\",bank3yn=\"Yes\"),OR(bankinput=\"\",N557=\"\",Q557=\"\")),\"Input required\",\"\"))","v":""},null,null,null,null,null,null,null,null,null,"(6 digits)",null,null,"(up to 9 digits)",null,null,null,null,null,null,null,null,null,null,null,null,null,null,null,null,null,null,null,null,{"$f":"IF(D558=\"\",0,1)","v":0}]
[]
[]
[]
[]
[]
[]
[null,null,null,"FINALISATION OF THE FORM AND LIST OF DOCUMENTS REQUIRED",null,null,null,null,null,null,null,null,null,null,null,null,null,null,null,null,null,null,null,null,null,null,null,null,null,null,null,null,null,null,null,null,null,{"$f":"SUM(AL3:AL564)","v":0}]
[]
[null,null,null,"Please ensure that you have completed ALL of the information which is relevant to your circumstances.",null,null,null,null,null,null,null,null,null,null,null,null,null,null,null,null,null,{"$f":"IF(B567=\"\",\"\",B567)","v":""}]
[null,null,null,"If you have any questions or need to provide additional information, please call or email us."]
[]
[null,null,null,"Or, you can add a message here:"]
[]
[]
[]
[]
[]
[]
[]
[]
[]
[null,null,null,{"$f":"IF(AL565>0,\"Some mandatory input is missing. It is indicated by RED FONT above. Please check and correct before proceeding.\",\"\")","v":""}]
[]
[null,null,null,"Save this file to your device."]
[null,null,null,"Then send it to us either by email or by using the \"Online Submission\" page on our website."]
[]
[null,null,null,"You will also need to include the attachments indicated below:"]
[]
[null,null,null,{"$f":"IF(P587=\"\",\"\",\"Proof of identity (eg: birth certificate, driver's licence or passport)\")","v":""},null,null,null,null,null,null,null,null,null,null,null,{"$f":"IF(existingyn=\"No\",\"Yes\",\"\")","v":""}]
[null,null,null,{"$f":"IF(P588=\"\",\"\",\"Payment summaries from your employer(s) - if any\")","v":""},null,null,null,null,null,null,null,null,null,null,null,{"$f":"IF(employeeyn=\"Yes\",\"Yes\",\"\")","v":""}]
[null,null,null,{"$f":"IF(P589=\"\",\"\",\"ETP statements from your employer(s) - if any\")","v":""},null,null,null,null,null,null,null,null,null,null,null,{"$f":"IF(etpyn=\"Yes\",\"Yes\",\"\")","v":""}]
[null,null,null,{"$f":"IF(P590=\"\",\"\",\"Details of Government pensions or allowances\")","v":""},null,null,null,null,null,null,null,null,null,null,null,{"$f":"IF(AND(atopensyn=\"No\",SUM(O99:T100)=0),\"Yes\",\"\")","v":""}]
[null,null,null,{"$f":"IF(P591=\"\",\"\",\"Payment summaries from your superannuation fund(s)\")","v":""},null,null,null,null,null,null,null,null,null,null,null,{"$f":"IF(supfundyn=\"Yes\",\"Yes\",\"\")","v":""}]
[null,null,null,{"$f":"IF(P592=\"\",\"\",\"Share dividend statements - if any\")","v":""},null,null,null,null,null,null,null,null,null,null,null,{"$f":"IF(AND(atodivsyn=\"No\",SUM(Q133:Z138)=0),\"Yes\",\"\")","v":""}]
[null,null,null,{"$f":"IF(P593=\"\",\"\",\"Employer share plan statements\")","v":""},null,null,null,null,null,null,null,null,null,null,null,{"$f":"IF(esasyn=\"Yes\",\"Yes\",\"\")","v":""}]
[null,null,null,{"$f":"IF(P594=\"\",\"\",\"Tax summary information from your managed fund(s)\")","v":""},null,null,null,null,null,null,null,null,null,null,null,{"$f":"IF(mgdinvyn=\"Yes\",\"Yes\",\"\")","v":""}]
[null,null,null,{"$f":"IF(P595=\"\",\"\",\"Details of business income and expenses\")","v":""},null,null,null,null,null,null,null,null,null,null,null,{"$f":"IF(businessyn=\"Yes\",\"Yes\",\"\")","v":""}]
[null,null,null,{"$f":"IF(P596=\"\",\"\",\"Purchase and sale documents for capital gains or losses\")","v":""},null,null,null,null,null,null,null,null,null,null,null,{"$f":"IF(cgtyn=\"Yes\",\"Yes\",\"\")","v":""}]
[null,null,null,{"$f":"IF(P597=\"\",\"\",\"Rental property statements\")","v":""},null,null,null,null,null,null,null,null,null,null,null,{"$f":"IF(attachrentyn=\"Yes\",\"Yes\",\"\")","v":""}]
[null,null,null,{"$f":"IF(P598=\"\",\"\",\"Annual statement from your health insurer(s)\")","v":""},null,null,null,null,null,null,null,null,null,null,null,{"$f":"IF(AND(phiatoyn=\"No\",SUM(J514:O517)=0),\"Yes\",\"\")","v":""}]
[]
[null,null,null,"END OF FORM"]